bitfinex/quotes_SOLUSD_20240601
["timestamp","ask_amount","ask_price","bid_price","bid_amount"]
[1717226832574,5.5,166.98,166.94,6.4711]
[1717226833378,4.4302,167.04,166.96,22.4807]
[1717226833585,5.5,166.99,166.96,6.1311]
[1717226836774,5.5,166.99,166.94,6.4711]
[1717226836981,5.5,166.98,166.94,6.4711]
[1717226839173,5.5,166.97,166.94,6.4711]
[1717226844792,5.5,166.99,166.94,6.4711]
[1717226845894,5.5,166.99,166.95,21.5897]
[1717226846689,5.5,166.99,166.95,6.3184]
[1717226851377,5.5,166.99,166.96,6.3184]
[1717226851889,2.2154,167.01,166.96,6.3184]
[1717226852094,5.5,166.99,166.96,6.3184]
[1717226855795,5.5,166.99,166.94,6.6584]
[1717226856097,5.5,166.98,166.94,6.6584]
[1717226857192,5.5,166.98,166.95,6.3184]
[1717226857375,5.5,166.99,166.95,6.3184]
[1717226857583,5.5,166.99,166.96,6.3184]
[1717226857895,5.5,167.0,166.96,6.3184]
[1717226859808,2.2154,167.01,166.97,6.3184]
[1717226860307,5.5,167.0,166.97,6.3184]
[1717226862514,5.5,167.0,166.94,0.34]
[1717226862804,5.5,166.99,166.95,6.3641]
[1717226863010,5.5,166.99,166.96,0.34]
[1717226866215,5.5,167.0,166.96,0.34]
[1717226870809,2.2154,167.01,166.98,6.3641]
[1717226871005,7.7153,167.02,166.98,6.3641]
[1717226873309,5.5,167.01,166.98,6.3641]
[1717226875617,2.2153,167.02,166.98,6.3641]
[1717226875839,5.5,167.01,166.98,6.3641]
[1717226876943,2.2152,167.03,166.98,6.3641]
[1717226877119,5.5,167.01,166.98,6.3641]
[1717226880036,5.5,167.01,166.99,0.54523124]
[1717226882031,7.7153,167.02,166.99,0.54523124]
[1717226883442,7.7153,167.02,166.98,6.3641]
[1717226884227,7.7153,167.02,166.99,0.17]
[1717226885340,2.2153,167.02,166.99,0.17]
[1717226885540,5.5,167.01,166.99,0.34]
[1717226887225,2.2153,167.02,166.99,0.34]
[1717226887522,5.5,167.01,166.99,0.34]
[1717226896450,2.215,167.05,166.99,0.34]
[1717226896638,5.5,167.02,166.99,0.34]
[1717226902459,2.2149,167.05,167.0,6.304]
[1717226902646,5.5,167.03,167.0,6.304]
[1717226912869,2.215,167.04,167.0,6.304]
[1717226913044,5.5,167.03,167.0,6.304]
[1717226920283,13.2864,167.09,166.99,0.34]
[1717226920284,5.5,167.02,166.99,0.34]
[1717226920966,5.5,167.01,166.99,0.17]
[1717226921155,5.5,167.0,166.94,95.96]
[1717226921471,5.5,167.0,166.96,6.1933]
[1717226921767,5.5,167.0,166.97,0.34]
[1717226923351,5.5,167.0,166.98,0.17]
[1717226923667,5.5,167.0,166.98,0.34]
[1717226924783,5.5,167.0,166.97,6.2018]
[1717226924948,4.80216157,167.03,166.95,6.2018]
[1717226925149,5.5,166.98,166.96,0.34]
[1717226929856,5.5,166.98,166.96,0.17]
[1717226930056,5.5,166.98,166.95,6.2018]
[1717226934702,5.5,166.98,166.94,0.34]
[1717226934899,5.5,166.99,166.93,26.5418]
[1717226944907,2.2151,167.03,166.94,60.0]
[1717226945110,2.2151,167.03,166.95,0.34]
[1717226945408,5.5,167.0,166.95,0.34]
[1717226945719,2.2151,167.03,166.95,0.34]
[1717226954636,5.5,167.0,166.95,0.34]
[1717226958336,2.2151,167.03,166.95,0.34]
[1717226958529,5.5,167.0,166.95,0.34]
[1717226959030,2.2151,167.03,166.95,0.34]
[1717226959231,5.5,167.0,166.95,0.34]
[1717226960325,2.2151,167.03,166.95,0.34]
[1717226960540,5.5,167.0,166.95,0.34]
[1717226963539,2.215,167.04,166.95,0.34]
[1717226963838,5.5,167.01,166.95,0.34]
[1717226965949,2.215,167.04,166.95,0.34]
[1717226966131,5.5,167.01,166.96,60.0]
[1717226966330,5.5,167.01,166.97,0.34]
[1717226966534,5.5,167.01,166.97,0.17]
[1717226967138,5.5,167.0,166.97,0.17]
[1717226967624,2.2151,167.03,166.97,0.17]
[1717226970525,5.5,167.01,166.97,0.17]
[1717226979044,2.2151,167.03,166.97,0.17]
[1717226979249,5.5,167.01,166.97,0.17]
[1717226981747,5.5,167.01,166.97,6.441]
[1717226981945,2.215,167.04,166.98,0.17]
[1717226982140,5.5,167.01,166.98,0.17]
[1717226987874,2.2152,167.03,166.98,0.17]
[1717226988053,5.5,167.01,166.98,0.17]
[1717226988850,2.2148,167.06,166.98,6.4112]
[1717226989042,5.5,167.03,166.99,6.4112]
[1717226989346,5.5,167.03,167.0,0.34]
[1717226991754,2.2149,167.05,167.0,0.34]
[1717226991932,5.5,167.03,167.0,0.34]
[1717226993052,2.2148,167.06,167.0,0.34]
[1717226993353,5.5,167.03,167.0,0.34]
[1717226998747,5.5,167.03,166.94,41.953]
[1717226998748,27.5,167.01,166.92,8.62938105]
[1717226998950,5.5,166.93,166.88,0.0950788]
[1717226999254,5.5,166.89,166.88,0.0950788]
[1717227015576,2.2166,166.92,166.88,0.0950788]
[1717227015770,5.5,166.89,166.88,0.0950788]
[1717227022681,5.5,166.91,166.88,0.0950788]
[1717227023588,2.2163,166.94,166.88,0.0950788]
[1717227023792,5.5,166.9,166.88,0.0950788]
[1717227024093,5.5,166.89,166.88,0.0950788]
[1717227025498,2.2165,166.93,166.88,0.0950788]
[1717227025798,5.5,166.89,166.88,0.0950788]
[1717227028493,5.27332583,166.89,166.88,0.0950788]
[1717227030001,5.5,166.9,166.88,0.0950788]
[1717227037687,2.2165,166.93,166.88,0.0950788]
[1717227037901,5.5,166.91,166.88,0.0950788]
[1717227050210,5.5,166.89,166.88,0.0950788]
[1717227057803,7.717,166.89,166.88,0.0950788]
[1717227058140,5.5,166.89,166.88,0.0950788]
[1717227059331,5.5,166.89,166.8,0.820374]
[1717227059332,2.218,166.81,166.8,0.820374]
[1717227059632,2.218,166.81,166.73,260.5]
[1717227059633,27.5,166.81,166.67,5.5]
[1717227059807,5.5,166.74,166.67,408.18383435]
[1717227060002,5.5,166.72,166.67,409.29753435]
[1717227060319,5.5,166.72,166.67,406.15343626]
[1717227060520,5.5,166.72,166.67,397.5137]
[1717227060725,2.2188,166.76,166.67,395.0137]
[1717227060905,5.5,166.72,166.68,6.6137]
[1717227061323,5.5,166.7,166.67,397.03973626]
[1717227061529,5.5,166.7,166.67,388.4]
[1717227061717,0.34,166.78,166.67,388.4]
[1717227061718,5.5,166.69,166.67,388.4]
[1717227063906,5.5,166.7,166.67,388.4]
[1717227064316,2.58706157,166.78,166.68,0.17]
[1717227064506,2.2187,166.77,166.69,6.1504]
[1717227064714,5.5,166.73,166.7,0.34]
[1717227065522,2.1184,166.79,166.7,6.4904]
[1717227065724,5.5,166.74,166.7,6.4904]
[1717227065926,5.5,166.73,166.7,6.4904]
[1717227067620,2.2185,166.78,166.71,6.1504]
[1717227067936,5.5,166.76,166.72,0.34]
[1717227073932,22.0,166.8,166.72,0.34]
[1717227073933,2.2184,166.78,166.72,0.34]
[1717227074237,22.0,166.8,166.67,6.1504]
[1717227074238,5.5,166.73,166.67,6.1504]
[1717227076629,5.5,166.73,166.68,0.17]
[1717227076832,2.2185,166.78,166.69,6.1504]
[1717227077035,5.5,166.76,166.7,0.17]
[1717227077331,5.5,166.75,166.66,60.0]
[1717227077541,5.5,166.74,166.67,20.34]
[1717227077849,5.5,166.74,166.67,25.84]
[1717227078019,5.5,166.73,166.67,25.84]
[1717227078217,2.2186,166.77,166.67,25.84]
[1717227078218,5.5,166.74,166.67,25.84]
[1717227078616,7.7192,166.73,166.67,0.34]
[1717227078838,22.0,166.8,166.68,0.17]
[1717227079024,5.5,166.73,166.66,65.84]
[1717227079223,5.5,166.74,166.66,5.5]
[1717227079428,5.5,166.73,166.66,5.5]
[1717227079850,2.2187,166.76,166.67,5.5]
[1717227080051,2.2185,166.78,166.66,60.0]
[1717227080251,5.5,166.74,166.67,5.5]
[1717227080743,5.5,166.74,166.68,0.34]
[1717227081650,4.436,166.82,166.69,65.5]
[1717227081846,5.5,166.76,166.7,0.34]
[1717227082045,5.5,166.76,166.7,0.17]
[1717227083034,2.2183,166.79,166.7,0.17]
[1717227083240,5.5,166.76,166.7,0.34]
[1717227084850,2.2182,166.8,166.71,65.5]
[1717227085052,2.2182,166.8,166.72,0.34]
[1717227085234,5.5,166.78,166.72,0.34]
[1717227085456,5.5,166.77,166.72,0.34]
[1717227085647,5.5,166.77,166.7,5.5]
[1717227085648,5.5,166.77,166.73,0.17]
[1717227085953,5.5,166.77,166.71,0.34]
[1717227088941,5.5,166.76,166.71,0.34]
[1717227089157,2.2183,166.79,166.72,0.17]
[1717227089343,2.2184,166.79,166.68,6.188]
[1717227089545,22.0,166.8,166.69,20.0]
[1717227089853,24.58706157,166.8,166.69,25.5]
[1717227090037,5.5,166.73,166.65,448.4]
[1717227090243,5.5,166.72,166.65,65.5]
[1717227090557,5.5,166.72,166.66,5.5]
[1717227091938,5.5,166.72,166.65,60.0]
[1717227092140,5.5,166.73,166.66,25.5]
[1717227092861,5.5,166.73,166.67,0.34]
[1717227093338,5.5,166.72,166.67,0.34]
[1717227093642,2.2188,166.76,166.67,0.34]
[1717227093847,5.5,166.73,166.67,0.34]
[1717227094558,5.5,166.74,166.67,5.84]
[1717227094753,5.5,166.72,166.67,0.34]
[1717227094960,5.5,166.72,166.67,0.17]
[1717227095133,5.5,166.73,166.66,25.84]
[1717227095950,5.5,166.73,166.66,20.34]
[1717227097154,2.2188,166.76,166.66,20.34]
[1717227097354,5.5,166.73,166.66,25.84]
[1717227097970,5.5,166.73,166.67,5.5]
[1717227098161,5.5,166.73,166.68,0.34]
[1717227098457,5.5,166.73,166.68,0.17]
[1717227098663,5.5,166.72,166.67,0.17]
[1717227098966,5.5,166.73,166.67,0.17]
[1717227100047,5.5,166.73,166.66,5.84]
[1717227100486,5.5,166.73,166.66,0.34]
[1717227100648,5.5,166.73,166.66,5.84]
[1717227101054,2.2188,166.76,166.66,0.34]
[1717227101238,5.5,166.73,166.66,5.84]
[1717227102265,5.5,166.73,166.66,0.34]
[1717227102641,2.2188,166.76,166.66,0.34]
[1717227102848,13.209,166.81,166.67,5.5]
[1717227102849,2.2185,166.78,166.67,5.5]
[1717227103160,5.5,166.75,166.68,5.84]
[1717227103365,2.1184,166.81,166.69,0.17]
[1717227103659,2.1184,166.81,166.69,11.839]
[1717227103853,2.2184,166.78,166.7,0.17]
[1717227104155,5.5,166.76,166.7,0.17]
[1717227105071,2.2184,166.78,166.7,0.17]
[1717227105256,5.5,166.75,166.7,6.339]
[1717227105445,5.5,166.75,166.71,0.17]
[1717227106745,2.2184,166.78,166.71,0.17]
[1717227106954,5.5,166.75,166.71,0.17]
[1717227107152,2.2183,166.8,166.71,0.17]
[1717227107362,5.5,166.77,166.71,0.17]
[1717227107662,2.218,166.82,166.72,65.5]
[1717227107998,5.5,166.79,166.73,0.34]
[1717227108145,2.2181,166.81,166.73,0.34]
[1717227108340,5.5,166.78,166.73,0.34]
[1717227108564,5.5,166.78,166.72,0.34]
[1717227108865,2.2182,166.8,166.72,0.34]
[1717227109047,5.5,166.78,166.72,0.34]
[1717227109359,5.5,166.77,166.72,0.34]
[1717227109565,5.5,166.77,166.72,6.509]
[1717227109758,2.2181,166.81,166.72,6.509]
[1717227109946,5.5,166.77,166.72,6.509]
[1717227110346,5.5,166.77,166.73,6.169]
[1717227110548,5.5,166.78,166.73,6.169]
[1717227111053,2.2181,166.81,166.73,6.169]
[1717227111244,5.5,166.78,166.73,6.169]
[1717227111444,2.2181,166.81,166.73,6.169]
[1717227111659,5.5,166.78,166.73,6.169]
[1717227114056,2.2181,166.81,166.72,66.509]
[1717227114265,5.5,166.79,166.72,72.009]
[1717227114769,2.2179,166.83,166.72,107.969]
[1717227114949,5.5,166.81,166.74,65.5]
[1717227115151,2.2179,166.83,166.75,0.34]
[1717227115350,5.5,166.81,166.75,0.34]
[1717227115671,5.5,166.8,166.75,0.34]
[1717227115962,5.5,166.8,166.76,6.169]
[1717227116166,5.5,166.8,166.77,0.17]
[1717227117467,5.5,166.81,166.77,0.17]
[1717227117779,5.5,166.8,166.77,0.34]
[1717227118273,2.2177,166.84,166.78,0.17]
[1717227118456,5.5,166.81,166.78,0.17]
[1717227118651,5.5,166.81,166.78,6.339]
[1717227120074,5.5,166.79,166.74,15.5865]
[1717227120275,4.4349,166.86,166.74,21.7555]
[1717227120276,5.5,166.78,166.74,21.7555]
[1717227121359,5.5,166.78,166.75,0.34]
[1717227121556,5.5,166.8,166.76,6.169]
[1717227121871,2.2175,166.85,166.77,0.34]
[1717227122248,2.1184,166.89,166.77,0.34]
[1717227122453,5.5,166.83,166.77,0.34]
[1717227122678,22.0,166.88,166.77,0.34]
[1717227122845,5.5,166.83,166.77,0.34]
[1717227123049,5.5,166.82,166.77,0.34]
[1717227123360,22.0,166.88,166.77,0.34]
[1717227123361,2.2172,166.88,166.78,66.2738]
[1717227123565,5.5,166.85,166.79,0.34]
[1717227123759,2.2171,166.88,166.79,5.84]
[1717227123978,5.5,166.85,166.79,0.34]
[1717227124358,2.2172,166.88,166.79,0.34]
[1717227124359,2.2173,166.87,166.79,0.34]
[1717227124668,2.2174,166.86,166.79,0.34]
[1717227127676,2.2173,166.87,166.79,60.34]
[1717227127986,2.2173,166.87,166.79,0.34]
[1717227128165,2.2173,166.87,166.8,0.17]
[1717227128366,2.2173,166.87,166.78,0.34]
[1717227129176,22.0,166.88,166.79,60.0]
[1717227129371,4.4335,166.91,166.81,6.2738]
[1717227129372,5.5,166.85,166.81,6.2738]
[1717227129572,4.4335,166.91,166.81,6.2738]
[1717227129781,22.3391,166.94,166.82,0.34]
[1717227129971,5.5,166.86,166.82,0.34]
[1717227130170,5.5,166.86,166.82,6.4438]
[1717227130373,5.5,166.86,166.83,0.17]
[1717227132368,5.5,166.86,166.82,6.4438]
[1717227132680,5.5,166.86,166.83,6.4438]
[1717227135080,2.217,166.89,166.83,6.4438]
[1717227135273,5.5,166.86,166.83,6.4438]
[1717227135662,2.217,166.89,166.83,6.4438]
[1717227135868,4.70546157,166.93,166.83,6.4438]
[1717227135869,2.2168,166.91,166.83,6.4438]
[1717227136177,2.1184,166.93,166.83,6.4438]
[1717227136178,5.5,166.88,166.84,0.17]
[1717227136371,5.5,166.88,166.83,0.17]
[1717227136573,5.5,166.87,166.83,6.4438]
[1717227136767,5.5,166.87,166.84,0.17]
[1717227136969,2.2169,166.9,166.84,0.17]
[1717227137176,5.5,166.87,166.84,0.17]
[1717227137883,5.5,166.87,166.84,6.4438]
[1717227142088,2.217,166.89,166.84,6.4438]
[1717227142273,5.5,166.87,166.84,6.4438]
[1717227142472,2.2169,166.9,166.84,6.4438]
[1717227142679,5.5,166.87,166.84,6.4438]
[1717227145279,5.5,166.87,166.85,6.0792]
[1717227149695,5.5,166.86,166.84,0.17]
[1717227149871,5.5,166.87,166.83,6.2492]
[1717227151295,2.217,166.89,166.83,6.2492]
[1717227151592,5.5,166.86,166.83,6.2492]
[1717227151794,5.5,166.87,166.83,6.2492]
[1717227151988,5.5,166.87,166.84,6.0792]
[1717227152378,5.5,166.88,166.84,6.0792]
[1717227153992,5.5,166.87,166.84,6.0792]
[1717227154176,5.5,166.87,166.83,0.17]
[1717227154377,5.5,166.86,166.83,0.17]
[1717227154899,5.5,166.86,166.83,6.2492]
[1717227159005,5.5,166.87,166.83,6.2492]
[1717227164908,5.5,166.87,166.83,6.7831]
[1717227166113,5.5,166.86,166.83,6.7831]
[1717227166410,5.5,166.85,166.83,6.6131]
[1717227166798,5.5,166.86,166.83,6.6131]
[1717227168706,5.5,166.86,166.82,6.9531]
[1717227168902,5.5,166.85,166.82,6.7831]
[1717227169311,2.58706157,166.92,166.74,87.67310246]
[1717227169312,5.5,166.83,166.77,6.6131]
[1717227169511,5.5,166.83,166.76,80.0]
[1717227169512,5.5,166.88,166.79,6.6131]
[1717227169695,5.5,166.82,166.79,6.6131]
[1717227180522,5.5,166.83,166.79,6.6131]
[1717227182040,2.2173,166.87,166.8,0.34]
[1717227182534,2.1184,166.91,166.8,0.34]
[1717227182829,5.5,166.84,166.8,6.9531]
[1717227183414,5.5,166.83,166.8,6.9531]
[1717227183721,2.2173,166.87,166.8,6.9531]
[1717227183933,24.2171,166.88,166.8,6.9531]
[1717227185530,2.217,166.89,166.8,66.9531]
[1717227185717,5.5,166.86,166.8,72.4531]
[1717227186529,5.5,166.86,166.8,66.9531]
[1717227186932,5.5,166.86,166.8,6.9531]
[1717227189515,5.5,166.85,166.81,6.2246]
[1717227189718,5.5,166.85,166.82,0.34]
[1717227190323,2.2169,166.9,166.82,0.34]
[1717227190531,5.5,166.85,166.82,0.34]
[1717227191237,5.5,166.85,166.81,6.2246]
[1717227191450,2.2171,166.88,166.81,6.2246]
[1717227191451,5.5,166.84,166.81,6.2246]
[1717227192929,2.2173,166.87,166.81,6.2246]
[1717227193139,5.5,166.84,166.8,0.34]
[1717227193444,5.5,166.84,166.81,0.17]
[1717227193651,5.5,166.84,166.79,6.5646]
[1717227193825,5.5,166.82,166.79,6.5646]
[1717227194146,5.5,166.82,166.79,6.3946]
[1717227198123,5.5,166.82,166.76,15.551]
[1717227198428,5.5,166.81,166.77,0.34]
[1717227198828,5.5,166.81,166.76,6.5646]
[1717227199743,5.5,166.8,166.76,6.3946]
[1717227200056,2.2177,166.84,166.76,0.17]
[1717227200223,5.5,166.79,166.76,0.17]
[1717227203452,5.5,166.79,166.75,0.17]
[1717227203453,5.5,166.79,166.75,6.5786]
[1717227210553,5.5,166.78,166.75,6.5786]
[1717227210859,2.218,166.82,166.75,6.5786]
[1717227211059,5.5,166.78,166.75,6.5786]
[1717227211241,5.5,166.78,166.75,0.17]
[1717227211444,5.5,166.78,166.74,0.34]
[1717227211655,5.5,166.78,166.74,6.7486]
[1717227214543,2.2182,166.8,166.69,66.4086]
[1717227214743,2.1184,166.77,166.64,0.816282]
[1717227214956,5.5,166.7,166.64,0.816282]
[1717227215663,5.5,166.68,166.64,0.816282]
[1717227217255,5.5,166.72,166.64,0.816282]
[1717227217459,22.0,166.72,166.64,0.816282]
[1717227217779,5.5,166.68,166.64,0.816282]
[1717227218858,2.2191,166.73,166.64,0.816282]
[1717227219048,5.5,166.7,166.65,0.34]
[1717227219249,2.2191,166.73,166.66,6.4086]
[1717227219445,5.5,166.7,166.66,6.4086]
[1717227219663,5.5,166.7,166.65,0.34]
[1717227220048,5.5,166.69,166.65,0.34]
[1717227220664,5.5,166.7,166.65,6.7486]
[1717227220838,5.5,166.7,166.66,6.4086]
[1717227221154,2.219,166.74,166.66,6.4086]
[1717227221463,5.5,166.71,166.66,6.4086]
[1717227222856,2.2189,166.75,166.67,0.17]
[1717227223056,5.5,166.72,166.65,12.2486]
[1717227223938,5.5,166.71,166.65,12.2486]
[1717227226168,5.5,166.71,166.65,6.7486]
[1717227227260,5.5,166.7,166.65,6.7486]
[1717227227447,5.5,166.7,166.66,6.2998]
[1717227227647,5.5,166.7,166.67,0.34]
[1717227230966,5.5,166.7,166.67,6.6398]
[1717227232154,5.5,166.7,166.67,6.2998]
[1717227232469,2.219,166.74,166.65,22.1703]
[1717227232470,5.5,166.69,166.65,22.1703]
[1717227232680,5.5,166.69,166.66,0.17]
[1717227235177,2.219,166.74,166.66,0.17]
[1717227235356,5.5,166.69,166.66,0.17]
[1717227237671,2.2189,166.75,166.68,6.2998]
[1717227237882,5.5,166.71,166.68,6.2998]
[1717227238168,5.5,166.7,166.66,6.6398]
[1717227238473,5.5,166.69,166.66,6.6398]
[1717227238673,5.5,166.7,166.66,6.4698]
[1717227238874,5.5,166.7,166.67,6.2998]
[1717227240477,5.5,166.71,166.67,6.2998]
[1717227241777,2.2189,166.75,166.68,0.17]
[1717227241975,2.2187,166.76,166.68,0.34]
[1717227242178,4.4367,166.79,166.68,0.34]
[1717227242179,5.5,166.72,166.68,6.6398]
[1717227244178,5.5,166.7,166.68,6.4698]
[1717227244355,2.2189,166.75,166.68,6.2998]
[1717227244872,5.5,166.71,166.68,6.2998]
[1717227250700,2.2187,166.76,166.68,6.2998]
[1717227250994,5.5,166.71,166.68,6.2998]
[1717227251782,7.02376157,166.79,166.68,6.2998]
[1717227251984,5.5,166.71,166.68,6.2998]
[1717227252172,2.2189,166.75,166.68,6.2998]
[1717227252372,5.5,166.7,166.68,6.2998]
[1717227253095,5.5,166.71,166.68,6.2998]
[1717227253288,2.2187,166.76,166.69,6.6599]
[1717227253490,5.5,166.71,166.69,6.6599]
[1717227254091,5.5,166.72,166.69,6.6599]
[1717227254683,2.2187,166.76,166.69,6.6599]
[1717227254982,5.5,166.72,166.69,6.6599]
[1717227255184,2.2187,166.76,166.69,6.6599]
[1717227255383,5.5,166.72,166.69,6.6599]
[1717227256172,2.2187,166.76,166.69,6.6599]
[1717227256494,2.2186,166.77,166.71,6.6599]
[1717227256699,5.5,166.73,166.71,6.6599]
[1717227257883,2.2186,166.77,166.71,6.6599]
[1717227257884,5.5,166.74,166.71,6.6599]
[1717227259292,5.5,166.74,166.72,6.6599]
[1717227260691,2.2186,166.77,166.72,6.6599]
[1717227260903,5.5,166.74,166.72,6.6599]
[1717227262682,2.2186,166.77,166.72,6.6599]
[1717227262886,2.2185,166.78,166.72,6.6599]
[1717227263085,22.0,166.8,166.72,6.6599]
[1717227263285,24.2183,166.8,166.72,6.6599]
[1717227263511,5.5,166.76,166.72,6.6599]
[1717227263688,5.5,166.76,166.72,6.3741]
[1717227266589,5.5,166.75,166.72,6.3741]
[1717227266908,2.2185,166.78,166.72,6.3741]
[1717227267080,5.5,166.75,166.72,6.3741]
[1717227267584,2.2185,166.78,166.73,6.3741]
[1717227267785,5.5,166.75,166.73,6.3741]
[1717227268007,5.5,166.76,166.73,6.3741]
[1717227268898,4.4358,166.83,166.73,6.3741]
[1717227269097,4.4358,166.83,166.74,6.3741]
[1717227269296,5.5,166.77,166.74,6.3741]
[1717227269504,2.2184,166.79,166.74,6.3741]
[1717227269703,5.5,166.77,166.74,6.3741]
[1717227269904,5.5,166.77,166.7,60.0]
[1717227269905,2.2191,166.73,166.65,0.7598622]
[1717227270209,2.2194,166.71,166.65,0.7598622]
[1717227270582,5.5,166.67,166.65,0.7598622]
[1717227271608,2.2194,166.71,166.65,0.7598622]
[1717227271791,5.5,166.67,166.65,0.7598622]
[1717227277818,24.2193,166.72,166.65,0.7598622]
[1717227278130,5.5,166.66,166.65,0.7598622]
[1717227280912,2.2194,166.71,166.65,0.7598622]
[1717227281302,5.5,166.66,166.65,0.7598622]
[1717227286515,15.3384,166.66,166.65,0.7598622]
[1717227286894,9.8384,166.66,166.65,0.7598622]
[1717227288300,7.72,166.66,166.65,0.7598622]
[1717227290621,5.5,166.66,166.65,0.7598622]
[1717227291212,7.72,166.66,166.65,0.7598622]
[1717227298415,2.22,166.66,166.65,0.7598622]
[1717227298617,7.72,166.66,166.65,0.7598622]
[1717227302934,2.22,166.66,166.65,0.7598622]
[1717227303154,7.72,166.66,166.65,0.7598622]
[1717227306827,2.22,166.66,166.65,0.7598622]
[1717227307033,7.72,166.66,166.65,0.7598622]
[1717227307645,28.5227,166.72,166.65,0.7598622]
[1717227307837,2.2198,166.68,166.65,0.7598622]
[1717227308162,5.5,166.66,166.65,0.7598622]
[1717227310425,22.0,166.72,166.65,0.7598622]
[1717227310633,2.2196,166.7,166.65,7.0206622]
[1717227310845,5.5,166.67,166.65,7.0206622]
[1717227316245,6.5558,166.77,166.66,15.3625]
[1717227316448,5.5,166.69,166.66,0.17]
[1717227316629,5.5,166.69,166.68,6.2608]
[1717227316836,5.5,166.7,166.68,6.2608]
[1717227322130,5.5,166.7,166.67,15.1925]
[1717227322456,5.5,166.71,166.69,6.2608]
[1717227325760,5.5,166.72,166.69,16.5094]
[1717227326062,5.5,166.72,166.7,6.5032]
[1717227329963,2.2189,166.75,166.69,23.0126]
[1717227330141,2.2189,166.75,166.7,6.6732]
[1717227330342,5.5,166.73,166.7,6.6732]
[1717227335475,2.2187,166.76,166.71,6.5032]
[1717227335657,5.5,166.73,166.71,6.5032]
[1717227337353,2.2187,166.76,166.71,6.5032]
[1717227337557,5.5,166.73,166.71,6.5032]
[1717227338076,5.5,166.74,166.71,6.5032]
[1717227341374,2.2186,166.77,166.71,6.5032]
[1717227341561,5.5,166.74,166.71,6.5032]
[1717227341750,5.5,166.73,166.71,6.5032]
[1717227342175,2.2187,166.76,166.71,6.5032]
[1717227342471,5.5,166.73,166.7,0.17]
[1717227343479,5.5,166.73,166.7,6.7348]
[1717227343672,2.2187,166.76,166.7,6.7348]
[1717227343978,5.5,166.73,166.7,6.7348]
[1717227345777,4.4366,166.8,166.71,0.17]
[1717227345981,5.5,166.74,166.71,6.9048]
[1717227348457,2.58706157,166.79,166.71,6.5648]
[1717227348458,5.5,166.73,166.71,6.5648]
[1717227348661,5.5,166.72,166.71,6.5648]